[Event "*** Titled Tuesday Blitz"]
[Site "Chess.com"]
[Date "2019.04.02"]
[Round "4"]
[White "nochewycandy"]
[Black "francogreek"]
[Result "1-0"]
[WhiteElo "2364"]
[BlackElo "2400"]
[TimeControl "180+2"]
[EndTime "14:50:50 PDT"]
[Termination "nochewycandy won by resignation"]

1. c4 {[%clk 0:03:01.9]} 1... g6 {[%clk 0:02:58.9]} 2. g3 {[%clk 0:03:02.4]}
2... Bg7 {[%clk 0:03:00.7]} 3. Bg2 {[%clk 0:03:03.9]} 3... Nf6 {[%clk
0:03:01.5]} 4. Nc3 {[%clk 0:03:05]} 4... O-O {[%clk 0:03:03.1]} 5. d4 {[%clk
0:03:06.2]} 5... d6 {[%clk 0:03:04.6]} 6. Nf3 {[%clk 0:03:07.3]} 6... Nbd7
{[%clk 0:03:06]} 7. O-O {[%clk 0:03:07.7]} 7... e5 {[%clk 0:03:07.2]} 8. d5
{[%clk 0:03:08]} 8... a5 {[%clk 0:03:05.2]} 9. Ne1 {[%clk 0:02:56.9]} 9... Nc5
{[%clk 0:03:03.3]} 10. e4 {[%clk 0:02:56.8]} 10... Ne8 {[%clk 0:02:57]} 11. Be3
{[%clk 0:02:56.7]} 11... f5 {[%clk 0:02:53.6]} 12. exf5 {[%clk 0:02:57.6]} 12...
gxf5 {[%clk 0:02:53.6]} 13. f4 {[%clk 0:02:56.4]} 13... b6 {[%clk 0:02:46.6]}
14. Nd3 {[%clk 0:02:51]} 14... e4 {[%clk 0:02:44.4]} 15. Nf2 {[%clk 0:02:47.4]}
15... Qf6 {[%clk 0:02:36.6]} 16. Rc1 {[%clk 0:02:41.4]} 16... a4 {[%clk
0:02:31.2]} 17. b4 {[%clk 0:02:36.2]} 17... axb3 {[%clk 0:02:31.7]} 18. axb3
{[%clk 0:02:38.1]} 18... Ra3 {[%clk 0:02:29.9]} 19. Nb5 {[%clk 0:02:30.3]} 19...
Ra2 {[%clk 0:02:25.5]} 20. b4 {[%clk 0:02:07.5]} 20... Nb7 {[%clk 0:02:10]} 21.
g4 {[%clk 0:01:58.4]} 21... Qg6 {[%clk 0:02:04.4]} 22. g5 {[%clk 0:01:53]} 22...
h6 {[%clk 0:01:57.3]} 23. h4 {[%clk 0:01:53.3]} 23... hxg5 {[%clk 0:01:58.6]}
24. hxg5 {[%clk 0:01:16.7]} 24... Bd7 {[%clk 0:01:47.1]} 25. Nd4 {[%clk
0:01:13.4]} 25... Kf7 {[%clk 0:01:26.7]} 26. Bh3 {[%clk 0:00:41.1]} 26... Rh8
{[%clk 0:01:21.2]} 27. Kg2 {[%clk 0:00:37.5]} 27... Ba4 {[%clk 0:01:14.3]} 28.
Bxf5 {[%clk 0:00:27.5]} 28... Bxd1 {[%clk 0:00:21.3]} 29. Bxg6+ {[%clk
0:00:27.2]} 29... Kxg6 {[%clk 0:00:23.2]} 30. Rcxd1 {[%clk 0:00:19]} 30... Bxd4
{[%clk 0:00:20]} 31. Rxd4 {[%clk 0:00:20.9]} 31... Ng7 {[%clk 0:00:19.8]} 32.
Rxe4 {[%clk 0:00:18.8]} 32... Nf5 {[%clk 0:00:20.5]} 33. Re6+ {[%clk 0:00:17.8]}
33... Kg7 {[%clk 0:00:21.9]} 34. Kf3 {[%clk 0:00:14]} 34... Nd8 {[%clk
0:00:21.2]} 35. Re4 {[%clk 0:00:13.7]} 35... Ra3 {[%clk 0:00:21.1]} 36. Re1
{[%clk 0:00:08.3]} 36... Nf7 {[%clk 0:00:16.1]} 37. Kg2 {[%clk 0:00:09.4]} 37...
Nh4+ {[%clk 0:00:16.4]} 38. Kf1 {[%clk 0:00:09.7]} 38... Nf3 {[%clk 0:00:17.3]}
39. Rd1 {[%clk 0:00:09.5]} 39... Rh2 {[%clk 0:00:14.6]} 40. Ke2 {[%clk
0:00:10.1]} 40... Nh4 {[%clk 0:00:14.5]} 41. Bd4+ {[%clk 0:00:11.3]} 41... Kg6
{[%clk 0:00:13.9]} 42. Rd3 {[%clk 0:00:13.2]} 42... Ra2+ {[%clk 0:00:14.4]} 43.
Rd2 {[%clk 0:00:12.9]} 43... Rxd2+ {[%clk 0:00:15.2]} 44. Kxd2 {[%clk
0:00:14.8]} 44... Nf5 {[%clk 0:00:16.1]} 45. Ke1 {[%clk 0:00:12.6]} 45... Nd8
{[%clk 0:00:11.6]} 46. Bf6 {[%clk 0:00:12]} 46... Nb7 {[%clk 0:00:12.3]} 47. Re8
{[%clk 0:00:12.5]} 47... b5 {[%clk 0:00:13]} 48. Rg8+ {[%clk 0:00:13.1]} 48...
Kf7 {[%clk 0:00:13.9]} 49. Rb8 {[%clk 0:00:12.6]} 49... bxc4 {[%clk 0:00:13.9]}
50. Rxb7 {[%clk 0:00:13.6]} 50... Ne3 {[%clk 0:00:15.1]} 51. Rxc7+ {[%clk
0:00:14.2]} 51... Kg6 {[%clk 0:00:16.6]} 52. Ke2 {[%clk 0:00:15]} 52... Ng4
{[%clk 0:00:16.6]} 53. Rxc4 {[%clk 0:00:12.2]} 53... Rxf2+ {[%clk 0:00:18]} 54.
Ke1 {[%clk 0:00:12.8]} 54... Kf5 {[%clk 0:00:19.3]} 55. b5 {[%clk 0:00:13.8]}
55... Rb2 {[%clk 0:00:20.2]} 56. Bxb2 {[%clk 0:00:14]} 1-0

[Event "*** Titled Tuesday Blitz"]
[Site "Chess.com"]
[Date "2019.04.02"]
[Round "4"]
[White "HiHaruka"]
[Black "Vusatiuk_Vladimir"]
[Result "0-1"]
[WhiteElo "2223"]
[BlackElo "2166"]
[TimeControl "180+2"]
[EndTime "14:50:50 PDT"]
[Termination "Vusatiuk_Vladimir won by checkmate"]

1. d4 {[%clk 0:03:01.9]} 1... Nf6 {[%clk 0:02:59.8]} 2. c4 {[%clk 0:03:01.8]}
2... e6 {[%clk 0:03:01.1]} 3. Nf3 {[%clk 0:03:02.2]} 3... b6 {[%clk 0:03:00.3]}
4. g3 {[%clk 0:03:02.1]} 4... Bb7 {[%clk 0:03:01.8]} 5. Bg2 {[%clk 0:03:03]}
5... Bb4+ {[%clk 0:03:01.8]} 6. Bd2 {[%clk 0:03:02]} 6... c5 {[%clk 0:03:02.6]}
7. Bxb4 {[%clk 0:02:46.5]} 7... cxb4 {[%clk 0:03:03.6]} 8. a3 {[%clk 0:02:47.7]}
8... Qe7 {[%clk 0:02:51.3]} 9. O-O {[%clk 0:02:38.6]} 9... O-O {[%clk
0:02:51.2]} 10. Qb3 {[%clk 0:02:30.5]} 10... Nc6 {[%clk 0:02:45.3]} 11. Nbd2
{[%clk 0:02:19.2]} 11... bxa3 {[%clk 0:02:34]} 12. Rxa3 {[%clk 0:02:16.8]} 12...
Na5 {[%clk 0:02:33.1]} 13. Qc2 {[%clk 0:01:55.8]} 13... Rfc8 {[%clk 0:02:29.7]}
14. Rc3 {[%clk 0:01:56.1]} 14... Rc7 {[%clk 0:02:23.1]} 15. c5 {[%clk
0:01:35.5]} 15... Nd5 {[%clk 0:01:54.6]} 16. cxb6 {[%clk 0:01:34.9]} 16... Rxc3
{[%clk 0:01:52.1]} 17. bxc3 {[%clk 0:01:34.6]} 17... Nxb6 {[%clk 0:01:52]} 18.
Ra1 {[%clk 0:01:18.7]} 18... Nac4 {[%clk 0:01:44.7]} 19. Nxc4 {[%clk 0:01:19]}
19... Nxc4 {[%clk 0:01:46.6]} 20. Ng5 {[%clk 0:01:14.6]} 20... Qxg5 {[%clk
0:01:31]} 21. Bxb7 {[%clk 0:01:14.7]} 21... Rb8 {[%clk 0:01:27.9]} 22. Rxa7
{[%clk 0:01:06.9]} 22... d5 {[%clk 0:01:15.8]} 23. Ba6 {[%clk 0:00:42]} 23...
Nd6 {[%clk 0:01:04.1]} 24. Bd3 {[%clk 0:00:38.4]} 24... g6 {[%clk 0:01:03.2]}
25. Qa4 {[%clk 0:00:26.9]} 25... Qc1+ {[%clk 0:00:38.5]} 26. Kg2 {[%clk
0:00:27.3]} 26... Qxc3 {[%clk 0:00:39.9]} 27. Ra6 {[%clk 0:00:15.5]} 27... Nf5
{[%clk 0:00:29.7]} 28. Bxf5 {[%clk 0:00:07.7]} 28... gxf5 {[%clk 0:00:31.6]} 29.
Ra7 {[%clk 0:00:08.7]} 29... Qd2 {[%clk 0:00:12]} 30. Qd7 {[%clk 0:00:08.3]}
30... Rf8 {[%clk 0:00:12.9]} 31. Qe7 {[%clk 0:00:08]} 31... Qxd4 {[%clk
0:00:12.6]} 32. Qg5+ {[%clk 0:00:09]} 32... Kh8 {[%clk 0:00:12.7]} 33. Re7
{[%clk 0:00:08.4]} 33... Qg7 {[%clk 0:00:12.9]} 34. Qf4 {[%clk 0:00:09.4]} 34...
Qf6 {[%clk 0:00:13]} 35. Qc7 {[%clk 0:00:10.1]} 35... Kg8 {[%clk 0:00:12.5]} 36.
Rd7 {[%clk 0:00:11.1]} 36... Ra8 {[%clk 0:00:07.4]} 37. Qb7 {[%clk 0:00:11.5]}
37... Rf8 {[%clk 0:00:07.5]} 38. Qb4 {[%clk 0:00:11.7]} 38... Rc8 {[%clk
0:00:07.3]} 39. h4 {[%clk 0:00:09.1]} 39... Rc4 {[%clk 0:00:05.3]} 40. Qb8+
{[%clk 0:00:09.5]} 40... Kg7 {[%clk 0:00:06.7]} 41. Rd8 {[%clk 0:00:10.4]} 41...
f4 {[%clk 0:00:06.9]} 42. Rg8+ {[%clk 0:00:11]} 42... Kh6 {[%clk 0:00:08.3]} 43.
Qf8+ {[%clk 0:00:11.1]} 43... Kh5 {[%clk 0:00:09.5]} 44. Rh8 {[%clk 0:00:08.5]}
44... h6 {[%clk 0:00:07.2]} 45. g4+ {[%clk 0:00:09.2]} 45... Kxg4 {[%clk
0:00:06.3]} 46. Rxh6 {[%clk 0:00:10.5]} 46... f3+ {[%clk 0:00:05]} 47. Kh2
{[%clk 0:00:05.1]} 47... Qf4+ {[%clk 0:00:06]} 48. Kg1 {[%clk 0:00:04.9]} 48...
Rc1# {[%clk 0:00:07.5]} 0-1

[Event "*** Titled Tuesday Blitz"]
[Site "Chess.com"]
[Date "2019.04.02"]
[Round "4"]
[White "Chessmatus"]
[Black "krzysztofszczurek"]
[Result "0-1"]
[WhiteElo "2340"]
[BlackElo "2405"]
[TimeControl "180+2"]
[EndTime "14:50:53 PDT"]
[Termination "krzysztofszczurek won by resignation"]

1. d4 {[%clk 0:02:59.6]} 1... Nf6 {[%clk 0:03:00]} 2. c4 {[%clk 0:03:00.6]} 2...
g6 {[%clk 0:03:00.9]} 3. Nc3 {[%clk 0:03:01.1]} 3... Bg7 {[%clk 0:03:02.5]} 4.
e4 {[%clk 0:03:01.7]} 4... O-O {[%clk 0:03:04.1]} 5. Be2 {[%clk 0:03:02.9]} 5...
d6 {[%clk 0:03:05.2]} 6. Be3 {[%clk 0:03:04.1]} 6... e5 {[%clk 0:03:05.3]} 7. d5
{[%clk 0:03:04.7]} 7... Nbd7 {[%clk 0:03:06.1]} 8. g4 {[%clk 0:03:04.9]} 8...
Nc5 {[%clk 0:03:05.2]} 9. f3 {[%clk 0:03:05.5]} 9... a5 {[%clk 0:03:06]} 10. h4
{[%clk 0:03:06.4]} 10... h5 {[%clk 0:03:05.9]} 11. g5 {[%clk 0:03:07.6]} 11...
Nfd7 {[%clk 0:03:05]} 12. Qd2 {[%clk 0:03:08.2]} 12... b6 {[%clk 0:03:03.1]} 13.
Nh3 {[%clk 0:03:07]} 13... Ba6 {[%clk 0:03:02.7]} 14. Nf2 {[%clk 0:03:07.9]}
14... Rb8 {[%clk 0:02:52.7]} 15. O-O-O {[%clk 0:03:08.6]} 15... Qe7 {[%clk
0:02:40]} 16. Nb5 {[%clk 0:03:05.5]} 16... Rfc8 {[%clk 0:02:29.8]} 17. Kb1
{[%clk 0:03:05.5]} 17... Bxb5 {[%clk 0:02:25.2]} 18. cxb5 {[%clk 0:03:05.9]}
18... Nf8 {[%clk 0:02:25.8]} 19. Rc1 {[%clk 0:03:00.6]} 19... Nfd7 {[%clk
0:02:26.2]} 20. Rhg1 {[%clk 0:02:43.6]} 20... Re8 {[%clk 0:02:23.4]} 21. Rc3
{[%clk 0:02:41.1]} 21... Rbc8 {[%clk 0:02:06.2]} 22. Bc4 {[%clk 0:02:35.5]}
22... Ra8 {[%clk 0:02:04.7]} 23. b3 {[%clk 0:02:34.2]} 23... Ra7 {[%clk
0:02:01.9]} 24. Rcc1 {[%clk 0:02:16.8]} 24... Raa8 {[%clk 0:01:58.8]} 25. Nd1
{[%clk 0:02:16.9]} 25... Kh7 {[%clk 0:01:56.7]} 26. Nc3 {[%clk 0:02:17.9]} 26...
Rf8 {[%clk 0:01:54.9]} 27. Rg2 {[%clk 0:02:17.2]} 27... Rfe8 {[%clk 0:01:55.1]}
28. Rf1 {[%clk 0:02:16.3]} 28... Rad8 {[%clk 0:01:53.3]} 29. Kb2 {[%clk
0:02:13.7]} 29... Ra8 {[%clk 0:01:51.7]} 30. a3 {[%clk 0:02:12.2]} 30... Ra7
{[%clk 0:01:50.3]} 31. Qd1 {[%clk 0:02:03.1]} 31... Rea8 {[%clk 0:01:48.7]} 32.
Rc2 {[%clk 0:01:55.2]} 32... Qe8 {[%clk 0:01:45.7]} 33. Qe2 {[%clk 0:01:51.5]}
33... Qe7 {[%clk 0:01:46.2]} 34. Ra1 {[%clk 0:01:51.6]} 34... Qe8 {[%clk
0:01:46.1]} 35. Qd2 {[%clk 0:01:51.5]} 35... Qe7 {[%clk 0:01:46.7]} 36. Rcc1
{[%clk 0:01:46.3]} 36... Qe8 {[%clk 0:01:38.9]} 37. Rg1 {[%clk 0:01:45.4]} 37...
Qe7 {[%clk 0:01:39.3]} 38. Qd1 {[%clk 0:01:45.3]} 38... Qe8 {[%clk 0:01:39.1]}
39. Ra2 {[%clk 0:01:43.4]} 39... Qe7 {[%clk 0:01:39.3]} 40. b4 {[%clk
0:01:38.8]} 40... Nb7 {[%clk 0:01:40.1]} 41. Rg2 {[%clk 0:01:36.9]} 41... Rf8
{[%clk 0:01:35.5]} 42. Qd2 {[%clk 0:01:34.4]} 42... Qd8 {[%clk 0:01:26.9]} 43.
Qc1 {[%clk 0:01:32.6]} 43... Qe7 {[%clk 0:01:27.4]} 44. Rc2 {[%clk 0:01:31.6]}
44... f6 {[%clk 0:01:23.6]} 45. Be2 {[%clk 0:01:31.8]} 45... fxg5 {[%clk
0:01:22.4]} 46. Bxg5 {[%clk 0:01:30.3]} 46... Bf6 {[%clk 0:01:22.5]} 47. Nd1
{[%clk 0:01:28.2]} 47... Bxg5 {[%clk 0:01:20]} 48. hxg5 {[%clk 0:01:29.3]} 48...
axb4 {[%clk 0:01:20.8]} 49. axb4 {[%clk 0:01:29]} 49... Rxa2+ {[%clk 0:01:20.5]}
50. Kxa2 {[%clk 0:01:30.1]} 50... Ra8+ {[%clk 0:01:20.3]} 51. Kb1 {[%clk
0:01:28.1]} 51... Ra4 {[%clk 0:01:20.5]} 52. Rxc7 {[%clk 0:01:25.9]} 52... Rxb4+
{[%clk 0:01:21.2]} 53. Nb2 {[%clk 0:01:25.8]} 53... Nbc5 {[%clk 0:01:20.7]} 54.
Qc3 {[%clk 0:01:16.8]} 54... Rd4 {[%clk 0:01:18.8]} 55. Nc4 {[%clk 0:01:13.2]}
55... Qxg5 {[%clk 0:01:09.9]} 56. Nxd6 {[%clk 0:01:06.9]} 56... Qg1+ {[%clk
0:01:09.1]} 57. Ka2 {[%clk 0:01:07.1]} 57... Qf2 {[%clk 0:01:09.8]} 58. Qc2
{[%clk 0:01:00]} 58... Kh6 {[%clk 0:01:07.2]} 59. Nb7 {[%clk 0:00:56.2]} 59...
Qe3 {[%clk 0:01:03.5]} 60. Nxc5 {[%clk 0:00:22.5]} 60... Rd2 {[%clk 0:00:56.9]}
61. Kb1 {[%clk 0:00:19.6]} 61... Rxc2 {[%clk 0:00:56.4]} 62. Kxc2 {[%clk
0:00:20.9]} 62... Qxe2+ {[%clk 0:00:56.8]} 63. Kb3 {[%clk 0:00:21.5]} 63...
Nxc5+ {[%clk 0:00:57.5]} 64. Rxc5 {[%clk 0:00:22.2]} 64... bxc5 {[%clk 0:00:58]}
65. b6 {[%clk 0:00:22.7]} 65... Qb5+ {[%clk 0:00:58.9]} 0-1

[Event "*** Titled Tuesday Blitz"]
[Site "Chess.com"]
[Date "2019.04.02"]
[Round "4"]
[White "SlavenPastar"]
[Black "Oleg_Papayan"]
[Result "0-1"]
[WhiteElo "2461"]
[BlackElo "2512"]
[TimeControl "180+2"]
[EndTime "14:50:53 PDT"]
[Termination "Oleg_Papayan won by resignation"]

1. d4 {[%clk 0:03:01.9]} 1... Nf6 {[%clk 0:02:55.2]} 2. c4 {[%clk 0:03:03.3]}
2... e6 {[%clk 0:02:56.7]} 3. Nf3 {[%clk 0:03:02.1]} 3... Bb4+ {[%clk
0:02:57.8]} 4. Bd2 {[%clk 0:03:01.4]} 4... a5 {[%clk 0:02:58.4]} 5. a3 {[%clk
0:03:00]} 5... Bxd2+ {[%clk 0:02:59]} 6. Qxd2 {[%clk 0:03:01.2]} 6... d6 {[%clk
0:02:56.9]} 7. Nc3 {[%clk 0:03:01.8]} 7... Nbd7 {[%clk 0:02:53.4]} 8. e4 {[%clk
0:02:58.4]} 8... e5 {[%clk 0:02:54.3]} 9. Bd3 {[%clk 0:02:51.6]} 9... O-O {[%clk
0:02:53.7]} 10. O-O {[%clk 0:02:51]} 10... Qe7 {[%clk 0:02:54.1]} 11. Bc2 {[%clk
0:02:50.2]} 11... Re8 {[%clk 0:02:48.6]} 12. b4 {[%clk 0:02:48.6]} 12... axb4
{[%clk 0:02:47.6]} 13. axb4 {[%clk 0:02:50.5]} 13... Rxa1 {[%clk 0:02:48.5]} 14.
Rxa1 {[%clk 0:02:50.7]} 14... exd4 {[%clk 0:02:45.3]} 15. Nxd4 {[%clk
0:02:50.6]} 15... Ne5 {[%clk 0:02:46.9]} 16. Bb3 {[%clk 0:02:48.6]} 16... Nc6
{[%clk 0:02:39.6]} 17. Nxc6 {[%clk 0:01:53.3]} 17... bxc6 {[%clk 0:02:41.5]} 18.
Bc2 {[%clk 0:01:44.3]} 18... Be6 {[%clk 0:02:13.1]} 19. Bd3 {[%clk 0:01:44.5]}
19... Nd7 {[%clk 0:02:14.1]} 20. f4 {[%clk 0:01:39.2]} 20... f6 {[%clk
0:02:04.5]} 21. h3 {[%clk 0:01:26.7]} 21... Rb8 {[%clk 0:02:04.9]} 22. Ra7
{[%clk 0:01:13.2]} 22... Qd8 {[%clk 0:01:36.4]} 23. Ne2 {[%clk 0:01:03]} 23...
Ra8 {[%clk 0:01:34.1]} 24. Qa2 {[%clk 0:00:59.3]} 24... Rb8 {[%clk 0:01:25.8]}
25. Nd4 {[%clk 0:00:57.2]} 25... Qe8 {[%clk 0:01:18.6]} 26. Nxc6 {[%clk
0:00:53.1]} 26... Rc8 {[%clk 0:01:16.1]} 27. Qa6 {[%clk 0:00:43.3]} 27... Nb6
{[%clk 0:01:12.5]} 28. b5 {[%clk 0:00:24.4]} 28... Bd7 {[%clk 0:00:43]} 29. Nd4
{[%clk 0:00:23.3]} 29... g5 {[%clk 0:00:44.5]} 30. f5 {[%clk 0:00:21.6]} 30...
Qe5 {[%clk 0:00:45.2]} 31. Nf3 {[%clk 0:00:14.1]} 31... Qc3 {[%clk 0:00:45.8]}
32. Bf1 {[%clk 0:00:15.2]} 32... h5 {[%clk 0:00:36]} 33. Qa2 {[%clk 0:00:12.2]}
33... Kh8 {[%clk 0:00:24.3]} 34. Ra3 {[%clk 0:00:13.2]} 34... Qb4 {[%clk
0:00:23.7]} 35. Rb3 {[%clk 0:00:10.4]} 35... Qc5+ {[%clk 0:00:25.2]} 36. Kh2
{[%clk 0:00:11.3]} 36... Re8 {[%clk 0:00:26.2]} 37. Qb2 {[%clk 0:00:11.8]} 37...
Kg7 {[%clk 0:00:26.9]} 38. Nxg5 {[%clk 0:00:12.6]} 38... Re5 {[%clk 0:00:21.6]}
39. Nf3 {[%clk 0:00:07.9]} 39... Rxe4 {[%clk 0:00:23.1]} 40. Rd3 {[%clk
0:00:06.5]} 40... Bxf5 {[%clk 0:00:23.9]} 41. Rd2 {[%clk 0:00:06.8]} 41... Rxc4
{[%clk 0:00:21.7]} 42. Be2 {[%clk 0:00:05.1]} 42... Rc3 {[%clk 0:00:20.2]} 43.
Bf1 {[%clk 0:00:05.6]} 43... Be4 {[%clk 0:00:17.1]} 44. Rf2 {[%clk 0:00:05.6]}
44... Nd5 {[%clk 0:00:17.2]} 45. Ng5 {[%clk 0:00:03.6]} 45... fxg5 {[%clk
0:00:17.2]} 46. Qd2 {[%clk 0:00:04]} 46... Qe3 {[%clk 0:00:17.4]} 47. Qb2 {[%clk
0:00:04.1]} 47... Kg6 {[%clk 0:00:13.1]} 48. Qa2 {[%clk 0:00:03.6]} 48... Qg3+
{[%clk 0:00:12]} 49. Kg1 {[%clk 0:00:04.9]} 49... Qe3 {[%clk 0:00:13.7]} 50. Kh2
{[%clk 0:00:05.8]} 50... h4 {[%clk 0:00:14.1]} 51. Kg1 {[%clk 0:00:05.8]} 51...
Rc2 {[%clk 0:00:13.9]} 52. Qxc2 {[%clk 0:00:07]} 52... Bxc2 {[%clk 0:00:15]} 0-1

[Event "*** Titled Tuesday Blitz"]
[Site "Chess.com"]
[Date "2019.04.02"]
[Round "4"]
[White "Artooooo"]
[Black "AttilaTurzo"]
[Result "1/2-1/2"]
[WhiteElo "2724"]
[BlackElo "2560"]
[TimeControl "180+2"]
[EndTime "14:50:57 PDT"]
[Termination "Game drawn by repetition"]

1. d4 {[%clk 0:03:01.7]} 1... Nf6 {[%clk 0:03:00.3]} 2. c4 {[%clk 0:03:02.1]}
2... e6 {[%clk 0:02:59.3]} 3. Nf3 {[%clk 0:03:02.2]} 3... c5 {[%clk 0:03:00]} 4.
g3 {[%clk 0:03:00]} 4... cxd4 {[%clk 0:02:48.4]} 5. Nxd4 {[%clk 0:03:01.9]} 5...
a6 {[%clk 0:02:44.2]} 6. Bg2 {[%clk 0:03:01.9]} 6... Qc7 {[%clk 0:02:41.9]} 7.
b3 {[%clk 0:02:59.5]} 7... Be7 {[%clk 0:02:42.2]} 8. O-O {[%clk 0:03:00.8]} 8...
O-O {[%clk 0:02:43.7]} 9. Bb2 {[%clk 0:03:02.3]} 9... d6 {[%clk 0:02:41.2]} 10.
Nc3 {[%clk 0:03:03.5]} 10... Nc6 {[%clk 0:02:28.2]} 11. Rc1 {[%clk 0:03:03.9]}
11... Ne5 {[%clk 0:02:19.8]} 12. h3 {[%clk 0:03:02.6]} 12... Rb8 {[%clk
0:02:20.1]} 13. Kh2 {[%clk 0:02:54.9]} 13... Ned7 {[%clk 0:02:12.5]} 14. Qd2
{[%clk 0:02:44.5]} 14... Re8 {[%clk 0:02:13.2]} 15. a4 {[%clk 0:02:34.2]} 15...
Nc5 {[%clk 0:02:07]} 16. b4 {[%clk 0:02:21.4]} 16... Ncd7 {[%clk 0:01:51.7]} 17.
a5 {[%clk 0:02:20]} 17... Ne5 {[%clk 0:01:41.9]} 18. Ncb5 {[%clk 0:01:34.7]}
18... axb5 {[%clk 0:01:30.2]} 19. Nxb5 {[%clk 0:01:35.3]} 19... Qd7 {[%clk
0:01:07.6]} 20. Qc3 {[%clk 0:00:45.7]} 20... b6 {[%clk 0:00:58.1]} 21. f4 {[%clk
0:00:34.2]} 21... Ng6 {[%clk 0:00:47.9]} 22. axb6 {[%clk 0:00:29.7]} 22... Rxb6
{[%clk 0:00:48.2]} 23. Rfd1 {[%clk 0:00:30.5]} 23... Bb7 {[%clk 0:00:32]} 24.
Qe3 {[%clk 0:00:31.4]} 24... Rxb5 {[%clk 0:00:21.2]} 25. cxb5 {[%clk 0:00:33.3]}
25... Bxg2 {[%clk 0:00:22.4]} 26. Kxg2 {[%clk 0:00:35.2]} 26... Qxb5 {[%clk
0:00:23.5]} 27. Bxf6 {[%clk 0:00:29.7]} 27... Bxf6 {[%clk 0:00:21.6]} 28. Rb1
{[%clk 0:00:18.3]} 28... d5 {[%clk 0:00:22.1]} 29. Qd3 {[%clk 0:00:18.3]} 29...
Rb8 {[%clk 0:00:16]} 30. Rdc1 {[%clk 0:00:18.8]} 30... h6 {[%clk 0:00:12]} 31.
Rc8+ {[%clk 0:00:14]} 31... Nf8 {[%clk 0:00:08.9]} 32. Rxb8 {[%clk 0:00:11.2]}
32... Qxb8 {[%clk 0:00:09.2]} 33. b5 {[%clk 0:00:13.1]} 33... Nd7 {[%clk
0:00:09.4]} 34. Qc2 {[%clk 0:00:12.1]} 34... Bd8 {[%clk 0:00:07.1]} 35. Qc6
{[%clk 0:00:12.3]} 35... Nb6 {[%clk 0:00:08.5]} 36. Ra1 {[%clk 0:00:13.3]} 36...
Bc7 {[%clk 0:00:08.2]} 37. Ra6 {[%clk 0:00:13.4]} 37... Kh7 {[%clk 0:00:06.4]}
38. e3 {[%clk 0:00:14.6]} 38... Kg8 {[%clk 0:00:03]} 39. Kf3 {[%clk 0:00:15.9]}
39... Kh7 {[%clk 0:00:04.4]} 40. h4 {[%clk 0:00:17.6]} 40... g6 {[%clk
0:00:05.8]} 41. Qc5 {[%clk 0:00:13.9]} 41... h5 {[%clk 0:00:05.1]} 42. Qc6
{[%clk 0:00:06.8]} 42... Kg7 {[%clk 0:00:06.4]} 43. Qc3+ {[%clk 0:00:08.1]}
43... Kg8 {[%clk 0:00:07.6]} 44. Qc6 {[%clk 0:00:09.4]} 44... Kg7 {[%clk
0:00:08.8]} 45. Ra2 {[%clk 0:00:09.2]} 45... Kg8 {[%clk 0:00:09.9]} 46. Rc2
{[%clk 0:00:09.8]} 46... Nc4 {[%clk 0:00:09]} 47. Ra2 {[%clk 0:00:11.4]} 47...
Nb6 {[%clk 0:00:07.3]} 48. Qc5 {[%clk 0:00:12.7]} 48... Bd6 {[%clk 0:00:06.9]}
49. Qc6 {[%clk 0:00:13.9]} 49... Bc7 {[%clk 0:00:08.1]} 50. Ra6 {[%clk
0:00:14.7]} 50... Bd8 {[%clk 0:00:08.2]} 51. Qc5 {[%clk 0:00:15.1]} 51... Bc7
{[%clk 0:00:09.6]} 52. Qc6 {[%clk 0:00:16.3]} 1/2-1/2

[Event "*** Titled Tuesday Blitz"]
[Site "Chess.com"]
[Date "2019.04.02"]
[Round "4"]
[White "regular_legs"]
[Black "Kimster98"]
[Result "1/2-1/2"]
[WhiteElo "2444"]
[BlackElo "2600"]
[TimeControl "180+2"]
[EndTime "14:50:57 PDT"]
[Termination "Game drawn - insufficient material"]

1. d4 {[%clk 0:03:01.9]} 1... Nf6 {[%clk 0:03:00.1]} 2. c4 {[%clk 0:03:02.2]}
2... e6 {[%clk 0:03:01.2]} 3. Nc3 {[%clk 0:03:02]} 3... Bb4 {[%clk 0:03:02.1]}
4. Qc2 {[%clk 0:03:02.3]} 4... O-O {[%clk 0:03:03.5]} 5. Nf3 {[%clk 0:03:01.2]}
5... d6 {[%clk 0:02:55.4]} 6. Bd2 {[%clk 0:03:00.8]} 6... Nbd7 {[%clk
0:02:50.6]} 7. a3 {[%clk 0:03:01.3]} 7... Bxc3 {[%clk 0:02:51.8]} 8. Bxc3 {[%clk
0:03:03.2]} 8... Qe7 {[%clk 0:02:49.6]} 9. e3 {[%clk 0:02:57.6]} 9... b6 {[%clk
0:02:49.6]} 10. Bd3 {[%clk 0:02:50.7]} 10... Bb7 {[%clk 0:02:50.1]} 11. O-O
{[%clk 0:02:44.7]} 11... e5 {[%clk 0:02:51.4]} 12. Nd2 {[%clk 0:02:43]} 12... a5
{[%clk 0:02:26]} 13. b4 {[%clk 0:02:41.4]} 13... axb4 {[%clk 0:02:25.8]} 14.
axb4 {[%clk 0:02:43.3]} 14... c5 {[%clk 0:02:22.9]} 15. bxc5 {[%clk 0:02:41]}
15... bxc5 {[%clk 0:02:24.8]} 16. d5 {[%clk 0:02:41.9]} 16... Rfb8 {[%clk
0:02:19.4]} 17. Rfb1 {[%clk 0:02:40.9]} 17... Qd8 {[%clk 0:02:19.7]} 18. h3
{[%clk 0:02:36]} 18... g6 {[%clk 0:02:16.8]} 19. Rxa8 {[%clk 0:02:25.3]} 19...
Bxa8 {[%clk 0:02:18.7]} 20. Rxb8 {[%clk 0:02:25.4]} 20... Qxb8 {[%clk
0:02:20.6]} 21. g3 {[%clk 0:02:22.6]} 21... Ne8 {[%clk 0:02:14.8]} 22. f4 {[%clk
0:02:22.6]} 22... Bb7 {[%clk 0:02:09.7]} 23. Kf2 {[%clk 0:02:22.5]} 23... Bc8
{[%clk 0:02:08.5]} 24. Nf3 {[%clk 0:02:21.7]} 24... f6 {[%clk 0:02:06]} 25. g4
{[%clk 0:02:22]} 25... Qc7 {[%clk 0:01:58.8]} 26. Kg3 {[%clk 0:02:20.8]} 26...
Kf7 {[%clk 0:01:38.7]} 27. h4 {[%clk 0:02:20.3]} 27... Ng7 {[%clk 0:01:34.2]}
28. Qh2 {[%clk 0:01:55.2]} 28... f5 {[%clk 0:01:22.6]} 29. h5 {[%clk 0:01:29.8]}
29... fxg4 {[%clk 0:01:07.7]} 30. hxg6+ {[%clk 0:01:25.1]} 30... hxg6 {[%clk
0:01:07.8]} 31. Ng5+ {[%clk 0:01:22.3]} 31... Kf6 {[%clk 0:00:52.9]} 32. Qh4
{[%clk 0:00:48.4]} 32... Nh5+ {[%clk 0:00:53.8]} 33. Kg2 {[%clk 0:00:43.4]}
33... Qa7 {[%clk 0:00:42.1]} 34. Ne4+ {[%clk 0:00:41]} 34... Kg7 {[%clk
0:00:41.4]} 35. Qe7+ {[%clk 0:00:21.5]} 35... Kh6 {[%clk 0:00:38.1]} 36. Qxd6
{[%clk 0:00:22.4]} 36... Qa2+ {[%clk 0:00:36.3]} 37. Nd2 {[%clk 0:00:22.5]}
37... Qa6 {[%clk 0:00:29.8]} 38. fxe5 {[%clk 0:00:21.9]} 38... Qxd6 {[%clk
0:00:24.8]} 39. exd6 {[%clk 0:00:23.8]} 39... g5 {[%clk 0:00:25.1]} 40. e4
{[%clk 0:00:24.5]} 40... Nf4+ {[%clk 0:00:26.2]} 41. Kg3 {[%clk 0:00:25.4]}
41... Nxd3 {[%clk 0:00:28.1]} 42. Kxg4 {[%clk 0:00:22.6]} 42... N7e5+ {[%clk
0:00:27.4]} 43. Kg3 {[%clk 0:00:23.7]} 43... Kg6 {[%clk 0:00:21.1]} 44. Nf3
{[%clk 0:00:20.7]} 44... Nxf3 {[%clk 0:00:21]} 45. Kxf3 {[%clk 0:00:21.3]} 45...
Kf7 {[%clk 0:00:21.5]} 46. e5 {[%clk 0:00:22.2]} 46... Bf5 {[%clk 0:00:22.7]}
47. Ke3 {[%clk 0:00:22.6]} 47... Nf4 {[%clk 0:00:21.5]} 48. e6+ {[%clk
0:00:22.5]} 48... Bxe6 {[%clk 0:00:22.4]} 49. dxe6+ {[%clk 0:00:24.4]} 49...
Kxe6 {[%clk 0:00:24.1]} 50. Ke4 {[%clk 0:00:17.7]} 50... Ng6 {[%clk 0:00:19]}
51. Bd2 {[%clk 0:00:16.5]} 51... g4 {[%clk 0:00:18.9]} 52. Be3 {[%clk
0:00:12.6]} 52... Ne5 {[%clk 0:00:16.3]} 53. Bxc5 {[%clk 0:00:12.5]} 53... Nxc4
{[%clk 0:00:17.2]} 54. Kf4 {[%clk 0:00:12.1]} 54... Nxd6 {[%clk 0:00:18.5]} 55.
Bxd6 {[%clk 0:00:12.6]} 55... g3 {[%clk 0:00:19.7]} 56. Kxg3 {[%clk 0:00:12.6]}
1/2-1/2